[Event "WTCC-65 2018"]
[Site "Radebeul"]
[Date "2018.07.15"]
[Round "9"]
[White "Malmdin, Nils-Ake"]
[Black "Van de Wynkele, Herman"]
[Result "1-0"]
[ECO "A04"]
[WhiteElo "2138"]
[BlackElo "2084"]
[Annotator "NA"]
[PlyCount "69"]
[EventDate "2018.07.07"]
[EventType "team-tourn"]
[EventCountry "GER"]
[SourceTitle "playchess.com"]
[Source "ChessBase"]
[SourceQuality "1"]
[TimeControl "40/5400+30:1800+30"]

1. Nf3 {[%emt 0:00:00]} g6 {[%emt 0:00:00]} 2. d4 {[%emt 0:00:46]} Bg7 {[%emt 0:00:00]} 3. e4 {[%emt 0:00:33]} d6 {[%emt 0:00:00]} 4. Bc4 {[%emt 0:03:26]} a6 {[%emt 0:01:26]} 5. a4 {[%emt 0:02:34]} Nf6 {[%emt 0:04:17]} 6. Qe2 {[%emt 0:08:55]} d5 {[%emt 0:04:15]} 7. exd5 {[%emt 0:01:19]} Nxd5 {[%emt 0:00:11]} 8. h3 {[%emt 0:05:47]} Nc6 {[%emt 0:01:00]} 9. c3 {[%emt 0:00:27]} O-O {[%emt 0:00:22]} 10. O-O {[%emt 0:00:23]} Bf5 {[%emt 0:05:55]} 11. Rd1 {[%emt 0:10:35]} Qd6 {[%emt 0:03:31]} 12. Nbd2 {[%emt 0:20:02]} Bc2 {[%emt 0:24:18]} 13. Re1 {[%emt 0:00:13]} Nf4 {[%emt 0:08:20]} 14. Qf1 {[%emt 0:00:30]} Qf6 {[%emt 0:11:05]} 15. g3 {[%emt 0:14:59]} Nh5 {[%emt 0:05:02]} 16. Kg2 {[%emt 0:06:17]} Qd6 {[%emt 0:08:08]} 17. b4 {[%emt 0:02:31]} e5 {[%emt 0:01:35]} 18. b5 {[%emt 0:09:33]} axb5 {[%emt 0:00:16]} 19. dxe5 {[%emt 0:02:06]} Nxe5 {[%emt 0:00:17]} 20. Ba3 {[%emt 0:00:26]} Qf6 {[%emt 0:06:14]} 21. Bxb5 {[%emt 0:02:31]} Nxf3 {[%emt 0:05:21]} 22. Nxf3 {[%emt 0:00:01]} c6 {[%emt 0:04:43]} 23. Bxf8 {[%emt 0:00:25]} Rxf8 {[%emt 0:01:08]} 24. Bc4 {[%emt 0:00:28]} Qxc3 {[%emt 0:01:25]} 25. Rac1 {[%emt 0:00:21]} Bh6 {[%emt 0:00:59]} 26. Qe2 {[%emt 0:00:15]} Bxc1 {[%emt 0:01:22]} 27. Rxc1 {[%emt 0:00:01]} b5 {[%emt 0:01:29]} 28. Rxc2 {[%emt 0:00:17]} Qf6 {[%emt 0:00:05]} 29. axb5 {[%emt 0:00:28]} cxb5 30. Bxb5 {[%emt 0:00:14]} Rd8 {[%emt 0:00:42]} 31. Qe5 {[%emt 0:01:21]} Qb6 {[%emt 0:00:30]} 32. Rc7 {[%emt 0:01:07]} Ng7 {[%emt 0:00:20]} 33. Qe7 {[%emt 0:01:36]} Rf8 {[%emt 0:00:24]} 34. Bc4 {[%emt 0:00:50]} Nf5 {[%emt 0:01:02]} 35. Bxf7+ {[%emt 0:00:37]} 1-0

[Event "WTCC-65 2018"]
[Site "Radebeul"]
[Date "2018.07.15"]
[Round "9"]
[White "Nevednichy, Boris M"]
[Black "Klundt, Klaus"]
[Result "1/2-1/2"]
[ECO "B23"]
[WhiteElo "2115"]
[BlackElo "2318"]
[Annotator "NA"]
[PlyCount "76"]
[EventDate "2018.07.07"]
[EventType "team-tourn"]
[EventCountry "GER"]
[SourceTitle "playchess.com"]
[Source "ChessBase"]
[SourceQuality "1"]
[TimeControl "40/5400+30:1800+30"]

1. e4 {[%emt 0:00:00]} c5 {[%emt 0:00:00]} 2. Nc3 {[%emt 0:00:00]} e6 {[%emt 0:00:09]} 3. Nge2 {[%emt 0:00:12]} Nc6 {[%emt 0:00:20]} 4. g3 {[%emt 0:00:27]} Nf6 {[%emt 0:03:07]} 5. Bg2 {[%emt 0:00:18]} d5 6. exd5 {[%emt 0:00:13]} exd5 {[%emt 0:04:17]} 7. O-O {[%emt 0:03:32]} d4 {[%emt 0:04:53]} 8. Ne4 {[%emt 0:00:12]} Nxe4 {[%emt 0:00:54]} 9. Bxe4 Bd6 10. d3 {[%emt 0:02:03]} O-O {[%emt 0:01:04]} 11. Nf4 {[%emt 0:03:22]} Ne5 {[%emt 0:02:08]} 12. h3 {[%emt 0:02:05]} Re8 {[%emt 0:04:33]} 13. Bg2 {[%emt 0:03:22]} Rb8 {[%emt 0:02:51]} 14. Nd5 {[%emt 0:09:56]} Be6 {[%emt 0:02:22]} 15. Nf4 {[%emt 0:02:40]} Bd7 {[%emt 0:01:01]} 16. c3 {[%emt 0:13:27]} dxc3 {[%emt 0:02:00]} 17. bxc3 {[%emt 0:00:05]} Bc6 {[%emt 0:00:33]} 18. d4 {[%emt 0:00:55]} cxd4 {[%emt 0:03:23]} 19. cxd4 {[%emt 0:00:16]} Bxg2 {[%emt 0:01:01]} 20. Nxg2 {[%emt 0:04:47]} Nc6 {[%emt 0:06:50]} 21. Qg4 {[%emt 0:05:57]} Qf6 {[%emt 0:02:46]} 22. Be3 {[%emt 0:01:44]} Nb4 {[%emt 0:06:48]} 23. a4 {[%emt 0:07:07]} Nd5 {[%emt 0:02:56]} 24. Rfe1 {[%emt 0:03:01]} Qe6 {[%emt 0:04:14]} 25. Bd2 {[%emt 0:03:07]} Qxg4 {[%emt 0:00:57]} 26. hxg4 {[%emt 0:00:31]} Kf8 {[%emt 0:04:37]} 27. Ne3 {[%emt 0:00:32]} Nxe3 {[%emt 0:01:33]} 28. Bxe3 {[%emt 0:00:15]} b6 {[%emt 0:01:05]} 29. Kg2 {[%emt 0:00:52]} Rbc8 {[%emt 0:00:38]} 30. Rec1 {[%emt 0:01:51]} Ke7 {[%emt 0:01:17]} 31. Kf3 {[%emt 0:02:11]} Kd7 {[%emt 0:00:26]} 32. g5 {[%emt 0:05:17]} Rxc1 {[%emt 0:01:03]} 33. Rxc1 {[%emt 0:00:02]} Rc8 {[%emt 0:00:12]} 34. Rxc8 {[%emt 0:05:41]} Kxc8 {[%emt 0:00:06]} 35. Ke4 {[%emt 0:00:10]} Kd7 {[%emt 0:01:18]} 36. Kd5 {[%emt 0:00:09]} a6 37. Kc4 {[%emt 0:01:47]} Be7 {[%emt 0:02:14]} 38. d5 {[%emt 0:01:40]} Bd8 {[%emt 0:00:36]} 1/2-1/2

[Event "WTCC-65 2018"]
[Site "Radebeul"]
[Date "2018.07.15"]
[Round "9"]
[White "Weisenburger, Horst"]
[Black "Belinchis, Valerii"]
[Result "1-0"]
[ECO "A45"]
[WhiteElo "2096"]
[BlackElo "1881"]
[Annotator "NA"]
[PlyCount "77"]
[EventDate "2018.07.07"]
[EventType "team-tourn"]
[EventCountry "GER"]
[SourceTitle "playchess.com"]
[Source "ChessBase"]
[SourceQuality "1"]
[TimeControl "40/5400+30:1800+30"]

1. d4 {[%emt 0:00:00]} Nf6 {[%emt 0:00:00]} 2. Bf4 {[%emt 0:00:00]} c5 {[%emt 0:01:31]} 3. d5 {[%emt 0:13:38]} d6 {[%emt 0:00:32]} 4. Nc3 {[%emt 0:01:13]} g6 {[%emt 0:01:39]} 5. Qd2 {[%emt 0:05:53]} a6 {[%emt 0:02:00]} 6. a4 {[%emt 0:02:21]} Qa5 {[%emt 0:01:04]} 7. Ra3 {[%emt 0:11:13]} Bg7 {[%emt 0:03:16]} 8. Nf3 {[%emt 0:11:18]} Nbd7 {[%emt 0:03:02]} 9. e4 {[%emt 0:04:50]} Nh5 {[%emt 0:04:00]} 10. Bh6 {[%emt 0:04:27]} O-O {[%emt 0:03:41]} 11. Be2 {[%emt 0:02:06]} Re8 {[%emt 0:11:48]} 12. O-O {[%emt 0:03:54]} Nhf6 {[%emt 0:05:00]} 13. Nh4 {[%emt 0:05:09]} Qb4 {[%emt 0:04:16]} 14. Bxg7 {[%emt 0:03:59]} Kxg7 {[%emt 0:00:29]} 15. Rb3 {[%emt 0:04:19]} Qd4 {[%emt 0:07:40]} 16. Qg5 {[%emt 0:07:52]} Kh8 {[%emt 0:07:30]} 17. Nf3 {[%emt 0:01:55]} Nxe4 {[%emt 0:01:54]} 18. Qh4 {[%emt 0:01:25]} Qf6 {[%emt 0:04:51]} 19. Qxe4 {[%emt 0:00:42]} Nf8 {[%emt 0:01:37]} 20. Qe3 {[%emt 0:00:54]} e5 {[%emt 0:00:39]} 21. Ne4 {[%emt 0:02:15]} Qe7 {[%emt 0:00:59]} 22. Nfg5 {[%emt 0:01:29]} f5 {[%emt 0:00:49]} 23. Nxd6 {[%emt 0:00:20]} f4 {[%emt 0:00:47]} 24. Ngf7+ {[%emt 0:02:36]} Kg7 {[%emt 0:00:19]} 25. Qc3 {[%emt 0:00:46]} Nd7 {[%emt 0:00:45]} 26. Nxe8+ {[%emt 0:01:29]} Kxf7 {[%emt 0:00:53]} 27. Nc7 {[%emt 0:00:08]} Ra7 {[%emt 0:00:38]} 28. Ne6 {[%emt 0:00:46]} b6 {[%emt 0:01:02]} 29. Qh3 {[%emt 0:00:58]} Kg8 {[%emt 0:00:59]} 30. Qh6 {[%emt 0:01:11]} Nf6 {[%emt 0:01:11]} 31. Qg5 {[%emt 0:02:26]} Nxd5 {[%emt 0:02:12]} 32. Qxe7 {[%emt 0:00:02]} Rxe7 {[%emt 0:00:19]} 33. Ng5 {[%emt 0:01:13]} Kg7 {[%emt 0:00:56]} 34. Bc4 {[%emt 0:01:39]} Nb4 {[%emt 0:00:53]} 35. c3 {[%emt 0:00:36]} Nc6 {[%emt 0:00:22]} 36. Rxb6 {[%emt 0:00:12]} Na5 {[%emt 0:00:18]} 37. Bxa6 {[%emt 0:00:34]} Bf5 {[%emt 0:00:18]} 38. b4 {[%emt 0:00:28]} Nb3 {[%emt 0:00:16]} 39. Rb7 {[%emt 0:00:20]} 1-0

[Event "WTCC-65 2018"]
[Site "Radebeul"]
[Date "2018.07.15"]
[Round "9"]
[White "Hohler, Peter"]
[Black "Donchenko, Anatoly"]
[Result "1/2-1/2"]
[ECO "D21"]
[WhiteElo "2073"]
[BlackElo "2301"]
[Annotator "NA"]
[PlyCount "50"]
[EventDate "2018.07.07"]
[EventType "team-tourn"]
[EventCountry "GER"]
[SourceTitle "playchess.com"]
[Source "ChessBase"]
[SourceQuality "1"]
[TimeControl "40/5400+30:1800+30"]

1. d4 {[%emt 0:00:00]} d5 {[%emt 0:00:00]} 2. c4 {[%emt 0:00:24]} dxc4 {[%emt 0:00:00]} 3. Nf3 {[%emt 0:00:25]} a6 {[%emt 0:00:16]} 4. e3 {[%emt 0:01:11]} Nf6 {[%emt 0:00:20]} 5. a4 {[%emt 0:01:37]} e6 {[%emt 0:01:16]} 6. Bxc4 {[%emt 0:00:06]} c5 {[%emt 0:00:08]} 7. O-O {[%emt 0:00:23]} Nc6 {[%emt 0:00:13]} 8. Qe2 {[%emt 0:00:45]} Qc7 {[%emt 0:01:43]} 9. Nc3 {[%emt 0:00:43]} Be7 {[%emt 0:00:48]} 10. dxc5 {[%emt 0:01:04]} Bxc5 {[%emt 0:00:14]} 11. Bd2 {[%emt 0:01:15]} O-O {[%emt 0:00:49]} 12. Rac1 {[%emt 0:04:34]} b6 {[%emt 0:00:41]} 13. Bd3 {[%emt 0:00:38]} a5 {[%emt 0:09:07]} 14. Rfd1 {[%emt 0:06:50]} Rd8 {[%emt 0:02:49]} 15. h3 {[%emt 0:07:36]} Bb7 {[%emt 0:02:13]} 16. e4 {[%emt 0:05:01]} Nd7 {[%emt 0:06:24]} 17. Be3 {[%emt 0:07:09]} Bxe3 {[%emt 0:05:11]} 18. Qxe3 {[%emt 0:00:04]} Nc5 {[%emt 0:00:19]} 19. Bc4 {[%emt 0:04:25]} h6 {[%emt 0:09:37]} 20. Nb5 {[%emt 0:09:09]} Qe7 {[%emt 0:00:56]} 21. Nc3 {[%emt 0:01:57]} Rxd1+ {[%emt 0:04:10]} 22. Rxd1 {[%emt 0:00:10]} Rd8 {[%emt 0:00:27]} 23. Rd2 {[%emt 0:06:50]} Rxd2 {[%emt 0:04:21]} 24. Nxd2 {[%emt 0:00:58]} Qd8 {[%emt 0:04:15]} 25. f4 {[%emt 0:09:25]} Kf8 {[%emt 0:06:28]} 1/2-1/2

[Event "WTCC-65 2018"]
[Site "Radebeul"]
[Date "2018.07.15"]
[Round "9"]
[White "Gass, Ulrich"]
[Black "Bartsch, Berthold"]
[Result "1-0"]
[ECO "B17"]
[WhiteElo "2072"]
[BlackElo "2248"]
[Annotator "NA"]
[PlyCount "61"]
[EventDate "2018.07.07"]
[EventType "team-tourn"]
[EventCountry "GER"]
[SourceTitle "playchess.com"]
[Source "ChessBase"]
[SourceQuality "1"]
[TimeControl "40/5400+30:1800+30"]

1. e4 {[%emt 0:00:00]} c6 {[%emt 0:00:46]} 2. d4 {[%emt 0:00:12]} d5 {[%emt 0:00:06]} 3. Nc3 {[%emt 0:00:10]} dxe4 {[%emt 0:00:14]} 4. Nxe4 {[%emt 0:00:03]} Nd7 {[%emt 0:00:09]} 5. Bc4 {[%emt 0:03:00]} Ngf6 {[%emt 0:00:10]} 6. Ng5 {[%emt 0:00:44]} e6 {[%emt 0:00:22]} 7. Qd3 {[%emt 0:01:08]} Nb6 {[%emt 0:01:24]} 8. Bb3 {[%emt 0:00:11]} h6 {[%emt 0:03:53]} 9. N5f3 {[%emt 0:00:42]} Qc7 {[%emt 0:01:44]} 10. Ne2 {[%emt 0:02:33]} c5 {[%emt 0:10:44]} 11. dxc5 {[%emt 0:04:37]} Bxc5 {[%emt 0:00:13]} 12. Bf4 {[%emt 0:03:09]} Qe7 {[%emt 0:00:20]} 13. O-O {[%emt 0:03:03]} O-O {[%emt 0:00:19]} 14. Rad1 {[%emt 0:01:44]} Bd7 {[%emt 0:03:26]} 15. Ne5 {[%emt 0:05:20]} Rfd8 {[%emt 0:01:56]} 16. Qh3 {[%emt 0:05:47]} Ba4 {[%emt 0:03:49]} 17. Nd3 {[%emt 0:07:14]} Bxb3 {[%emt 0:01:23]} 18. axb3 {[%emt 0:00:03]} Nbd5 {[%emt 0:03:02]} 19. Bd2 {[%emt 0:03:25]} Bb6 {[%emt 0:04:10]} 20. c4 {[%emt 0:01:27]} Nc7 {[%emt 0:00:45]} 21. Bb4 {[%emt 0:01:39]} Rxd3 {[%emt 0:00:41]} 22. Bxe7 {[%emt 0:00:17]} Rxh3 {[%emt 0:00:33]} 23. gxh3 {[%emt 0:00:10]} Nce8 {[%emt 0:02:31]} 24. b4 {[%emt 0:01:42]} Rc8 {[%emt 0:00:38]} 25. c5 {[%emt 0:00:49]} Bc7 {[%emt 0:00:13]} 26. Nc3 {[%emt 0:01:09]} Be5 {[%emt 0:01:00]} 27. Rd8 {[%emt 0:03:43]} Rxd8 {[%emt 0:02:38]} 28. Bxd8 {[%emt 0:00:02]} a6 {[%emt 0:00:26]} 29. Rd1 {[%emt 0:05:50]} Bxc3 {[%emt 0:02:55]} 30. bxc3 {[%emt 0:04:48]} Nd5 {[%emt 0:00:03]} 31. Ba5 {[%emt 0:02:49]} 1-0

[Event "WTCC-65 2018"]
[Site "Radebeul"]
[Date "2018.07.15"]
[Round "9"]
[White "Van Herck, Marcel"]
[Black "Hammar, Bengt"]
[Result "0-1"]
[ECO "B94"]
[WhiteElo "2008"]
[BlackElo "2159"]
[Annotator "NA"]
[PlyCount "50"]
[EventDate "2018.07.07"]
[EventType "team-tourn"]
[EventCountry "GER"]
[SourceTitle "playchess.com"]
[Source "ChessBase"]
[SourceQuality "1"]
[TimeControl "40/5400+30:1800+30"]

1. e4 {[%emt 0:00:00]} c5 {[%emt 0:00:04]} 2. Nf3 {[%emt 0:00:02]} d6 {[%emt 0:00:32]} 3. d4 {[%emt 0:00:07]} cxd4 {[%emt 0:00:10]} 4. Nxd4 {[%emt 0:00:09]} Nf6 {[%emt 0:00:27]} 5. Nc3 {[%emt 0:00:09]} a6 {[%emt 0:00:24]} 6. Bg5 {[%emt 0:00:13]} Nbd7 {[%emt 0:01:47]} 7. Bc4 {[%emt 0:01:20]} Qa5 {[%emt 0:00:20]} 8. Qd2 {[%emt 0:01:03]} e6 {[%emt 0:00:12]} 9. f3 {[%emt 0:16:10]} b5 {[%emt 0:02:11]} 10. Bb3 {[%emt 0:00:37]} Bb7 {[%emt 0:00:24]} 11. O-O {[%emt 0:09:17]} Be7 {[%emt 0:06:35]} 12. Be3 {[%emt 0:15:18]} Nc5 {[%emt 0:01:43]} 13. a3 {[%emt 0:07:32]} Nxb3 {[%emt 0:00:26]} 14. Nxb3 {[%emt 0:00:26]} Qc7 {[%emt 0:00:21]} 15. Qf2 {[%emt 0:03:26]} Nd7 {[%emt 0:06:36]} 16. Bd4 {[%emt 0:02:37]} O-O {[%emt 0:01:38]} 17. Qg3 {[%emt 0:00:13]} e5 {[%emt 0:12:13]} 18. Be3 {[%emt 0:00:30]} Kh8 {[%emt 0:00:25]} 19. Qf2 {[%emt 0:02:06]} f5 {[%emt 0:03:23]} 20. exf5 {[%emt 0:00:11]} d5 {[%emt 0:00:20]} 21. Rfd1 {[%emt 0:03:31]} d4 {[%emt 0:01:37]} 22. Bxd4 {[%emt 0:00:03]} exd4 {[%emt 0:00:10]} 23. Nxd4 {[%emt 0:00:03]} Bc5 {[%emt 0:00:31]} 24. Ne4 {[%emt 0:01:00]} Bxe4 {[%emt 0:06:32]} 25. fxe4 {[%emt 0:00:10]} Rae8 {[%emt 0:01:20]} 0-1

[Event "WTCC-65 2018"]
[Site "Radebeul"]
[Date "2018.07.15"]
[Round "9"]
[White "Scovitin, Albert"]
[Black "Seibold, Hubert"]
[Result "1/2-1/2"]
[ECO "A22"]
[WhiteElo "2004"]
[BlackElo "2113"]
[Annotator "NA"]
[PlyCount "86"]
[EventDate "2018.07.07"]
[EventType "team-tourn"]
[EventCountry "GER"]
[SourceTitle "playchess.com"]
[Source "ChessBase"]
[SourceQuality "1"]
[TimeControl "40/5400+30:1800+30"]

1. c4 {[%emt 0:00:00]} e5 {[%emt 0:00:00]} 2. Nc3 {[%emt 0:00:00]} Nf6 {[%emt 0:00:12]} 3. g3 {[%emt 0:00:50]} d5 {[%emt 0:01:23]} 4. cxd5 {[%emt 0:00:19]} Nxd5 {[%emt 0:00:19]} 5. Bg2 {[%emt 0:00:10]} Nxc3 {[%emt 0:01:48]} 6. bxc3 {[%emt 0:00:08]} Be7 {[%emt 0:05:03]} 7. Nf3 {[%emt 0:02:47]} Nc6 {[%emt 0:02:54]} 8. O-O {[%emt 0:00:15]} O-O {[%emt 0:02:08]} 9. d4 {[%emt 0:02:33]} exd4 {[%emt 0:02:37]} 10. cxd4 {[%emt 0:01:40]} Bf6 {[%emt 0:02:07]} 11. e3 {[%emt 0:00:27]} Bf5 {[%emt 0:04:00]} 12. Ba3 {[%emt 0:00:41]} Re8 {[%emt 0:00:49]} 13. Qb3 {[%emt 0:00:16]} Na5 {[%emt 0:05:30]} 14. Qb5 {[%emt 0:00:15]} c5 {[%emt 0:02:59]} 15. Qxc5 {[%emt 0:00:28]} Bd3 {[%emt 0:03:27]} 16. Rfc1 {[%emt 0:00:45]} Rc8 {[%emt 0:07:15]} 17. Qxc8 {[%emt 0:00:31]} Qxc8 {[%emt 0:00:01]} 18. Rxc8 {[%emt 0:00:14]} Rxc8 {[%emt 0:00:06]} 19. Rc1 {[%emt 0:00:06]} Rxc1+ {[%emt 0:01:12]} 20. Bxc1 {[%emt 0:00:07]} Bc4 {[%emt 0:03:09]} 21. a3 {[%emt 0:00:10]} b5 {[%emt 0:02:25]} 22. Nd2 {[%emt 0:02:05]} Be7 {[%emt 0:02:03]} 23. e4 {[%emt 0:02:36]} Nb3 {[%emt 0:09:48]} 24. Nxb3 {[%emt 0:00:36]} Bxb3 {[%emt 0:00:02]} 25. e5 {[%emt 0:00:10]} b4 {[%emt 0:02:48]} 26. axb4 {[%emt 0:00:08]} Bxb4 {[%emt 0:00:07]} 27. Bb2 {[%emt 0:00:07]} a5 {[%emt 0:06:29]} 28. d5 Kf8 {[%emt 0:07:01]} 29. d6 {[%emt 0:01:53]} a4 {[%emt 0:03:17]} 30. f4 {[%emt 0:00:31]} a3 {[%emt 0:06:22]} 31. Bc1 {[%emt 0:00:13]} Ba4 {[%emt 0:02:35]} 32. Bd5 {[%emt 0:07:37]} Ke8 {[%emt 0:00:43]} 33. Kf2 {[%emt 0:01:39]} Bc5+ {[%emt 0:05:27]} 34. Ke2 {[%emt 0:01:32]} h5 {[%emt 0:01:27]} 35. Be3 {[%emt 0:01:57]} Bb4 {[%emt 0:00:40]} 36. Bd4 {[%emt 0:00:25]} g6 {[%emt 0:01:56]} 37. Kd3 {[%emt 0:01:47]} Bb5+ {[%emt 0:01:08]} 38. Ke3 {[%emt 0:02:08]} Bd7 {[%emt 0:02:02]} 39. Kf2 {[%emt 0:07:48]} Bf5 {[%emt 0:00:33]} 40. Kg2 {[%emt 0:08:50]} Bd2 {[%emt 0:03:39]} 41. Kf2 {[%emt 0:35:26]} Bc1 {[%emt 0:03:14]} 42. Bc4 {[%emt 0:00:00]} Bb2 {[%emt 0:10:20]} 43. Bc5 {[%emt 0:00:00]} Be6 {[%emt 0:00:58]} 1/2-1/2